[Event "FIDE Open World Rapid 2024"]
[Site "New York"]
[Date "2024.12.28"]
[Round "9.36"]
[White "Kacharava, Nikolozi"]
[Black "George, Kevin"]
[Result "1-0"]
[ECO "C58"]
[WhiteElo "2510"]
[BlackElo "2270"]
[Annotator "ChessBase"]
[PlyCount "107"]
[EventDate "2024.12.14"]
[EventType "swiss"]
[EventCountry "USA"]
[SourceTitle "playchess.com"]
[Source "ChessBase"]
[SourceQuality "1"]
[TimeControl "900+10"]

1. e4 {[%emt 0:00:02]} e5 {[%emt 0:00:02]} 2. Nf3 {[%emt 0:00:02]} Nc6 {[%emt 0:00:00]} 3. Bc4 {[%emt 0:00:01]} Nf6 {[%emt 0:00:12]} 4. Ng5 {[%emt 0:00:06]} d5 {[%emt 0:00:02]} 5. exd5 {[%emt 0:00:01]} Na5 {[%emt 0:00:01]} 6. Bb5+ {[%emt 0:00:02]} c6 {[%emt 0:00:02]} 7. dxc6 {[%emt 0:00:02]} bxc6 {[%emt 0:00:02]} 8. Bd3 {[%emt 0:00:02]} Nd5 {[%emt 0:00:03]} 9. Nf3 {[%emt 0:00:03]} Bd6 {[%emt 0:00:09]} 10. O-O {[%emt 0:00:08]} O-O {[%emt 0:00:12]} 11. Re1 {[%emt 0:00:01]} f5 {[%emt 0:00:04]} 12. Nxe5 {[%emt 0:00:13]} Qf6 {[%emt 0:00:01]} 13. Nf3 {[%emt 0:00:03]} g5 {[%emt 0:00:01]} 14. c4 {[%emt 0:00:25]} Nf4 {[%emt 0:00:04]} 15. Bf1 {[%emt 0:00:02]} g4 {[%emt 0:00:03]} 16. c5 {[%emt 0:00:10]} Bc7 {[%emt 0:01:49]} 17. d4 {[%emt 0:00:02]} gxf3 {[%emt 0:00:04]} 18. Bxf4 {[%emt 0:00:02]} Bxf4 {[%emt 0:00:22]} 19. Qxf3 {[%emt 0:00:02]} Qxd4 {[%emt 0:01:11]} 20. Na3 {[%emt 0:00:04]} Bc7 {[%emt 0:01:44]} 21. b4 {[%emt 0:00:27]} Qxb4 {[%emt 0:00:59]} 22. Nc4 {[%emt 0:00:10]} Qxc5 {[%emt 0:03:57]} 23. Rac1 {[%emt 0:05:06]} Qd4 {[%emt 0:00:19]} 24. Nxa5 {[%emt 0:06:44]} Bxa5 {[%emt 0:00:09]} 25. Bc4+ {[%emt 0:00:49]} Kh8 {[%emt 0:00:24]} 26. Qa3 {[%emt 0:00:02]} Ba6 {[%emt 0:03:35]} 27. Red1 {[%emt 0:00:30]} Qb6 {[%emt 0:01:22]} 28. Bxa6 {[%emt 0:00:04]} Qxa6 {[%emt 0:00:08]} 29. Rd7 {[%emt 0:00:28]} Qe2 {[%emt 0:02:25]} 30. Qxa5 {[%emt 0:00:13]} Rfe8 {[%emt 0:00:12]} 31. g3 {[%emt 0:00:35]} Re7 {[%emt 0:00:18]} 32. Qxf5 {[%emt 0:00:57]} Rxd7 {[%emt 0:00:14]} 33. Qxd7 {[%emt 0:00:02]} Qxa2 {[%emt 0:00:06]} 34. Qd4+ {[%emt 0:00:57]} Kg8 {[%emt 0:00:01]} 35. Rxc6 {[%emt 0:00:41]} Qb1+ {[%emt 0:00:03]} 36. Kg2 {[%emt 0:00:01]} Qb7 {[%emt 0:00:07]} 37. Qd5+ {[%emt 0:00:27]} Kh8 {[%emt 0:00:07]} 38. Qd4+ {[%emt 0:00:11]} Kg8 {[%emt 0:00:03]} 39. Qc4+ {[%emt 0:00:13]} Kh8 {[%emt 0:00:04]} 40. Qc3+ {[%emt 0:00:01]} Kg8 {[%emt 0:00:03]} 41. f3 {[%emt 0:00:10]} Rb8 {[%emt 0:00:30]} 42. g4 {[%emt 0:01:34]} a5 {[%emt 0:00:26]} 43. Rc7 {[%emt 0:00:11]} Qb2+ {[%emt 0:00:06]} 44. Qxb2 {[%emt 0:00:01]} Rxb2+ {[%emt 0:00:01]} 45. Kg3 {[%emt 0:00:03]} a4 {[%emt 0:00:26]} 46. Ra7 {[%emt 0:00:00]} Rb4 {[%emt 0:00:03]} 47. g5 {[%emt 0:00:10]} Rb5 {[%emt 0:00:26]} 48. Kg4 {[%emt 0:00:14]} Rb2 {[%emt 0:00:14]} 49. h4 {[%emt 0:00:04]} Ra2 {[%emt 0:00:11]} 50. Kf5 {[%emt 0:00:14]} Rf2 {[%emt 0:00:11]} 51. f4 {[%emt 0:00:00]} Rf3 {[%emt 0:00:10]} 52. Rxa4 {[%emt 0:00:01]} Rh3 {[%emt 0:00:03]} 53. Kf6 {[%emt 0:00:04]} h6 {[%emt 0:00:07]} 54. Ra8+ {[%emt 0:00:03]} 1-0

[Event "FIDE Open World Rapid 2024"]
[Site "New York"]
[Date "2024.12.27"]
[Round "9.36"]
[White "Chasin, Nico"]
[Black "Ibarra Jerez, Jose Carlos"]
[Result "1-0"]
[ECO "E60"]
[WhiteElo "2417"]
[BlackElo "2556"]
[Annotator "ChessBase"]
[PlyCount "79"]
[EventDate "2024.12.14"]
[EventType "swiss"]
[EventCountry "USA"]
[SourceTitle "playchess.com"]
[Source "ChessBase"]
[SourceQuality "1"]
[TimeControl "900+10"]

1. d4 {[%emt 0:00:02]} Nf6 {[%emt 0:00:03]} 2. c4 {[%emt 0:00:01]} d6 {[%emt 0:00:04]} 3. Nf3 {[%emt 0:00:02]} g6 {[%emt 0:00:02]} 4. g3 {[%emt 0:00:02]} Bg7 {[%emt 0:00:09]} 5. Bg2 {[%emt 0:00:02]} Bf5 {[%emt 0:00:02]} 6. O-O {[%emt 0:00:06]} O-O {[%emt 0:00:03]} 7. b3 {[%emt 0:00:13]} c6 {[%emt 0:03:33]} 8. Bb2 {[%emt 0:00:04]} a5 {[%emt 0:00:09]} 9. Nh4 {[%emt 0:00:56]} Be4 {[%emt 0:00:47]} 10. Nf3 {[%emt 0:00:39]} Bf5 {[%emt 0:00:08]} 11. Nh4 {[%emt 0:00:05]} Be4 {[%emt 0:00:48]} 12. Nf3 {[%emt 0:00:02]} Bf5 {[%emt 0:00:18]} 13. Re1 {[%emt 0:00:51]} d5 {[%emt 0:00:23]} 14. Nbd2 {[%emt 0:00:13]} a4 {[%emt 0:00:54]} 15. bxa4 {[%emt 0:01:10]} Qa5 {[%emt 0:00:15]} 16. Qb3 {[%emt 0:00:42]} Qxa4 {[%emt 0:00:45]} 17. Qxb7 {[%emt 0:00:57]} Nbd7 {[%emt 0:00:17]} 18. Bc3 {[%emt 0:01:18]} Rfb8 {[%emt 0:00:54]} 19. Qc7 {[%emt 0:00:01]} e5 {[%emt 0:00:41]} 20. Nxe5 {[%emt 0:00:16]} Nxe5 {[%emt 0:05:21]} 21. dxe5 {[%emt 0:00:15]} Nd7 {[%emt 0:00:32]} 22. e4 {[%emt 0:01:16]} Ra7 {[%emt 0:00:38]} 23. Qxb8+ {[%emt 0:00:29]} Nxb8 {[%emt 0:00:01]} 24. exf5 {[%emt 0:00:02]} Qa3 {[%emt 0:00:29]} 25. Nb1 {[%emt 0:00:20]} Qc5 {[%emt 0:00:14]} 26. cxd5 {[%emt 0:00:18]} cxd5 {[%emt 0:00:01]} 27. f6 {[%emt 0:00:01]} Bf8 {[%emt 0:00:17]} 28. Rd1 {[%emt 0:00:01]} d4 {[%emt 0:00:39]} 29. Rxd4 {[%emt 0:01:37]} Rd7 {[%emt 0:00:09]} 30. Rxd7 {[%emt 0:04:37]} Nxd7 {[%emt 0:00:01]} 31. a4 {[%emt 0:00:01]} Nxe5 {[%emt 0:00:01]} 32. a5 {[%emt 0:00:03]} Nd3 {[%emt 0:00:04]} 33. Ra2 {[%emt 0:00:01]} Qc4 {[%emt 0:01:28]} 34. Rd2 {[%emt 0:00:02]} Qb3 {[%emt 0:00:24]} 35. Rxd3 {[%emt 0:00:01]} Qxb1+ {[%emt 0:00:02]} 36. Bf1 {[%emt 0:00:01]} Qa2 {[%emt 0:00:21]} 37. Rd8 {[%emt 0:00:04]} Qa3 {[%emt 0:00:02]} 38. a6 {[%emt 0:00:11]} h5 {[%emt 0:00:07]} 39. Bb4 {[%emt 0:00:00]} Qxb4 {[%emt 0:00:21]} 40. a7 {[%emt 0:00:00]} 1-0

[Event "FIDE Open World Rapid 2024"]
[Site "New York"]
[Date "2024.12.27"]
[Round "9.37"]
[White "Aravindh, Chithambaram VR."]
[Black "Bai, Adelard"]
[Result "1-0"]
[ECO "D00"]
[WhiteElo "2718"]
[BlackElo "2393"]
[Annotator "TA"]
[PlyCount "72"]
[EventDate "2024.12.14"]
[EventType "swiss"]
[EventCountry "USA"]
[SourceTitle "playchess.com"]
[Source "ChessBase"]
[SourceQuality "1"]
[TimeControl "900+10"]

{[%evp 9,72,3,19,16,22,33,37,12,13,0,0,0,0,4,11,12,13,0,0,0,12,17,22,0,0,0,0,0,0,0,3,0,0,0,85,33,43,14,59,14,51,55,50,11,33,6,18,22,27,0,0,0,13,-76,0,0,481,487,632,607,629,610,774,766,746]} 1. d4 {[%emt 0:00:02]} Nf6 {[%emt 0:00:01]} 2. Bg5 {[%emt 0:00:11]} d5 {[%emt 0:00:10]} 3. e3 {[%emt 0:00:01]} c5 {[%emt 0:00:06]} 4. c3 {[%emt 0:00:30]} Nc6 {[%emt 0:00:14][%cal Bb8c6,Bc6e5,Be5f3][%mdl 32]} 5. Nd2 {[%emt 0:00:33]} e5 {[%emt 0:00:53]} 6. dxe5 {[%emt 0:00:21]} Nxe5 {[%emt 0:00:07]} 7. Ngf3 {[%emt 0:00:02]} Nxf3+ {[%emt 0:00:38]} 8. Qxf3 {[%emt 0:01:52] White is slightly better.} Be7 {[%emt 0:00:26]} 9. Bd3 {[%emt 0:00:21]} O-O {[%emt 0:01:56]} 10. O-O {[%emt 0:00:31]} Be6 {[%emt 0:00:54]} 11. h3 {[%emt 0:00:27]} h6 {[%emt 0:01:23]} 12. Bf4 {[%emt 0:00:05]} Qb6 {[%emt 0:01:01]} 13. Rab1 {[%emt 0:00:31]} Rad8 {[%emt 0:00:29]} 14. Rfd1 {[%emt 0:04:32][%cal Ob2b4]} Rfe8 {[%emt 0:00:18] [#]} 15. b4 $1 {[%emt 0:00:14]} cxb4 {[%emt 0:01:07]} 16. cxb4 {[%emt 0:00:01]} (16. Be5 {looks sharper.} Nd7 17. Bd4 Bc5 18. Nb3) 16... d4 {[%emt 0:03:32] And now ...dxe3 would win.} (16... Bxb4 $2 17. a3 $18) 17. Nc4 {[%emt 0:00:04]} Qc6 {[%emt 0:00:45]} 18. Qxc6 {[%emt 0:04:09]} bxc6 {[%emt 0:00:01]} 19. Na5 {[%emt 0:00:14]} Bxa2 {[%emt 0:00:29]} 20. Rb2 {[%emt 0:00:08]} (20. Ra1 $5 Bd5 $8 21. b5 $11) 20... Bd5 {[%emt 0:00:27]} 21. exd4 {[%emt 0:00:03]} g5 {[%emt 0:01:57]} (21... Bd6 $11 {keeps the balance.} 22. Bxd6 Rxd6) 22. Be5 {[%emt 0:00:33] White is more active.} (22. Bc7 $16) 22... Nd7 {[%emt 0:00:19]} 23. Bg3 {[%emt 0:00:10]} Bf6 {[%emt 0:00:17]} 24. Bf5 {[%emt 0:00:16][%cal Bd3f5,Bf5g4,Bg4f3,Bf3d1][%mdl 32] Threatens to win with Bc7.} Nb6 {[%emt 0:00:28]} 25. Rc2 {[%emt 0:00:35] Prevents Nc4.} Kg7 {[%emt 0:00:39]} 26. Kh2 {[%emt 0:01:20]} h5 {[%emt 0:00:01][%cal Bh6h5,Bh5h4][%mdl 32]} 27. f3 {[%emt 0:00:21][%cal Bf2f3,Bf3f4,Bf4g5][%mdl 32]} h4 {[%emt 0:00:40]} 28. Bc7 {[%emt 0:00:07]} Ra8 {[%emt 0:00:03]} 29. Bg4 {[%emt 0:01:00]} (29. Nxc6 Bb3 30. Be5 Bxe5+ (30... Bxc2 31. Bxf6+ Kxf6 32. Bxc2 $17) 31. dxe5 Bxc2 32. Bxc2 Rac8 $17) 29... Re3 {[%emt 0:00:17]} 30. f4 {[%emt 0:00:09]} (30. Nxc6 Bb3 31. Rdc1 Bxc2 (31... Nd5 32. Bd6 $17) 32. Rxc2 Nd5 $17) 30... Rae8 {[%emt 0:00:12]} 31. Rf2 {[%emt 0:00:09] [#]} (31. Nxc6 $11 Rb3 32. Nxa7 Rxb4 33. Bd6) 31... R3e4 {[%emt 0:00:09]} (31... Be7 $1 $17 {[%cal Re7b4]} 32. Rb1 Na8 33. Be5+ f6) 32. Bf3 {[%emt 0:00:36]} Rxd4 {[%emt 0:00:07][%mdl 8192]} (32... R4e6 $11 {and Black has nothing to worry.}) 33. fxg5 $18 {[%emt 0:00:04] White is clearly winning.} (33. Nxc6 $2 {perishes.} Rxd1 34. Bxd1 Bxc6 $19) 33... Bd8 {[%emt 0:00:20]} 34. Bxd8 {[%emt 0:00:02]} (34. Rxd4 Bxc7+ 35. Kg1 Re1+ 36. Rf1 Bh2+ 37. Kxh2 Rxf1 $16) 34... Rxd1 {[%emt 0:00:10]} 35. Bf6+ {[%emt 0:00:01]} ({Weaker is} 35. Bxd1 Rxd8 36. Bh5 Rh8 $11) 35... Kg6 {[%emt 0:00:03] White must now prevent ...Bxf3.} 36. Bxd1 {[%emt 0:00:02] This pair of bishops is nice.} Re1 {[%emt 0:00:31] Weighted Error Value: White=0.16 (very precise) /Black=0.42.  Loses game:     	---       	Black=1      Mistake:       	White=2     	Black=2      Inaccurate:     	White=5     	Black=2      OK:         	White=10    	Black=10     Best:        	White=2     	Black=1} 1-0

[Event "FIDE Open World Rapid 2024"]
[Site "New York"]
[Date "2024.12.28"]
[Round "9.37"]
[White "Gaehwiler, Gabriel"]
[Black "Thavandiran, Shiyam"]
[Result "1/2-1/2"]
[ECO "C01"]
[WhiteElo "2392"]
[BlackElo "2410"]
[Annotator "ChessBase"]
[PlyCount "133"]
[EventDate "2024.12.14"]
[EventType "swiss"]
[EventCountry "USA"]
[SourceTitle "playchess.com"]
[Source "ChessBase"]
[SourceQuality "1"]
[TimeControl "900+10"]

1. e4 {[%emt 0:00:03]} e6 {[%emt 0:00:02]} 2. d4 {[%emt 0:00:38]} d5 {[%emt 0:00:02]} 3. Bd3 {[%emt 0:00:03]} dxe4 {[%emt 0:00:22]} 4. Bxe4 {[%emt 0:00:03]} Nf6 {[%emt 0:00:02]} 5. Bf3 {[%emt 0:00:02]} c5 {[%emt 0:00:04]} 6. Ne2 {[%emt 0:00:06]} Nc6 {[%emt 0:00:04]} 7. Be3 {[%emt 0:00:12]} e5 {[%emt 0:00:30]} 8. Bxc6+ {[%emt 0:03:40]} bxc6 {[%emt 0:00:02]} 9. dxe5 {[%emt 0:00:02]} Qxd1+ {[%emt 0:00:02]} 10. Kxd1 {[%emt 0:00:01]} Ng4 {[%emt 0:00:02]} 11. Nd2 {[%emt 0:00:57]} Nxe5 {[%emt 0:01:54]} 12. h3 {[%emt 0:00:53]} Ba6 {[%emt 0:01:23]} 13. Re1 {[%emt 0:00:27]} O-O-O {[%emt 0:00:07]} 14. Kc1 {[%emt 0:00:03]} Be7 {[%emt 0:03:09]} 15. Nc3 {[%emt 0:02:41]} Rhe8 {[%emt 0:00:15]} 16. b3 {[%emt 0:01:16]} f5 {[%emt 0:02:02]} 17. Kb2 {[%emt 0:01:05]} Ng6 {[%emt 0:01:36]} 18. g3 {[%emt 0:01:38]} Bf6 {[%emt 0:00:15]} 19. Rad1 {[%emt 0:00:04]} h5 {[%emt 0:01:54]} 20. Ndb1 {[%emt 0:00:39]} Rxd1 {[%emt 0:03:45]} 21. Rxd1 {[%emt 0:00:03]} Re5 {[%emt 0:00:04]} 22. Kc1 {[%emt 0:02:02]} h4 {[%emt 0:00:08]} 23. gxh4 {[%emt 0:00:21]} f4 {[%emt 0:00:49]} 24. Bd2 {[%emt 0:00:02]} Bxh4 {[%emt 0:00:10]} 25. Rg1 {[%emt 0:00:36]} Re6 {[%emt 0:00:16]} 26. f3 {[%emt 0:00:05]} Bg3 {[%emt 0:00:11]} 27. Ne4 {[%emt 0:00:13]} Rxe4 {[%emt 0:00:17]} 28. fxe4 {[%emt 0:00:02]} Nh4 {[%emt 0:00:08]} 29. Be1 {[%emt 0:01:11]} Bxe1 {[%emt 0:00:09]} 30. Rxe1 {[%emt 0:00:01]} Ng2 {[%emt 0:00:13]} 31. Rh1 {[%emt 0:00:40]} f3 {[%emt 0:00:04]} 32. c4 {[%emt 0:00:09]} Kc7 {[%emt 0:00:13]} 33. Nd2 {[%emt 0:00:05]} f2 {[%emt 0:00:05]} 34. Rf1 {[%emt 0:00:02]} Nf4 {[%emt 0:00:01]} 35. Kd1 {[%emt 0:00:22]} Nxh3 {[%emt 0:00:03]} 36. Ke2 {[%emt 0:00:04]} Bc8 {[%emt 0:00:20]} 37. Kf3 {[%emt 0:00:06]} Kd6 {[%emt 0:00:10]} 38. Rh1 {[%emt 0:00:06]} g5 {[%emt 0:00:15]} 39. Nf1 {[%emt 0:00:36]} Ke5 {[%emt 0:00:09]} 40. Ke3 {[%emt 0:00:07]} g4 {[%emt 0:00:10]} 41. Ng3 {[%emt 0:00:01]} Be6 {[%emt 0:00:07]} 42. Rd1 {[%emt 0:00:02]} Bf7 {[%emt 0:00:23]} 43. Rd7 {[%emt 0:00:02]} Bg6 {[%emt 0:00:05]} 44. Re7+ {[%emt 0:00:01]} Kf6 {[%emt 0:00:02]} 45. Rxa7 {[%emt 0:00:04]} Kg5 {[%emt 0:00:01]} 46. Rg7 {[%emt 0:00:13]} Kf6 {[%emt 0:00:08]} 47. Rxg6+ {[%emt 0:00:27]} Kxg6 {[%emt 0:00:01]} 48. a4 {[%emt 0:00:01]} Ng5 {[%emt 0:00:09]} 49. a5 {[%emt 0:00:04]} Ne6 {[%emt 0:00:01]} 50. a6 {[%emt 0:00:07]} Nc7 {[%emt 0:00:01]} 51. a7 {[%emt 0:00:01]} Kg5 {[%emt 0:00:20]} 52. e5 {[%emt 0:00:15]} f1=Q {[%emt 0:00:11]} 53. Nxf1 {[%emt 0:00:01]} Kf5 {[%emt 0:00:01]} 54. Ng3+ {[%emt 0:00:07]} Kxe5 {[%emt 0:00:01]} 55. Ne4 {[%emt 0:00:03]} Na8 {[%emt 0:00:11]} 56. Nxc5 {[%emt 0:00:07]} Kd6 {[%emt 0:00:23]} 57. Ne4+ {[%emt 0:00:25]} Kc7 {[%emt 0:00:03]} 58. Kf4 {[%emt 0:00:09]} Kb7 {[%emt 0:00:12]} 59. Kxg4 {[%emt 0:00:02]} Kxa7 {[%emt 0:00:05]} 60. Kf5 {[%emt 0:00:01]} Kb6 {[%emt 0:00:09]} 61. Ke5 {[%emt 0:00:12]} Nc7 {[%emt 0:00:10]} 62. Nf6 {[%emt 0:00:10]} Kc5 {[%emt 0:00:18]} 63. Nd7+ {[%emt 0:00:09]} Kb4 {[%emt 0:00:01]} 64. Kd6 {[%emt 0:00:02]} Kxb3 {[%emt 0:00:02]} 65. c5 {[%emt 0:00:02]} Na6 {[%emt 0:00:02]} 66. Kxc6 {[%emt 0:00:01]} Nxc5 {[%emt 0:00:01]} 67. Nxc5+ {[%emt 0:00:13]} 1/2-1/2

[Event "FIDE Open World Rapid 2024"]
[Site "New York"]
[Date "2024.12.28"]
[Round "9.38"]
[White "Wagner, Dennis"]
[Black "Manon, Reja Neer"]
[Result "0-1"]
[ECO "A77"]
[WhiteElo "2616"]
[BlackElo "2429"]
[Annotator "ChessBase"]
[PlyCount "156"]
[EventDate "2024.12.14"]
[EventType "swiss"]
[EventCountry "USA"]
[SourceTitle "playchess.com"]
[Source "ChessBase"]
[SourceQuality "1"]
[TimeControl "900+10"]

1. d4 {[%emt 0:00:02]} Nf6 {[%emt 0:00:29]} 2. c4 {[%emt 0:00:02]} e6 {[%emt 0:00:02]} 3. Nf3 {[%emt 0:00:01]} c5 {[%emt 0:00:08]} 4. d5 {[%emt 0:00:04]} exd5 {[%emt 0:00:01]} 5. cxd5 {[%emt 0:00:02]} d6 {[%emt 0:00:00]} 6. Nc3 {[%emt 0:00:02]} g6 {[%emt 0:00:01]} 7. Nd2 {[%emt 0:00:18]} Bg7 {[%emt 0:00:23]} 8. e4 {[%emt 0:00:01]} O-O {[%emt 0:00:15]} 9. Be2 {[%emt 0:00:02]} Re8 {[%emt 0:00:55]} 10. O-O {[%emt 0:00:03]} a6 {[%emt 0:00:12]} 11. a4 {[%emt 0:00:03]} Nbd7 {[%emt 0:00:01]} 12. h3 {[%emt 0:00:33]} Qc7 {[%emt 0:00:30]} 13. Kh1 {[%emt 0:00:25]} Rb8 {[%emt 0:01:50]} 14. a5 {[%emt 0:03:27]} b5 {[%emt 0:02:35]} 15. axb6 {[%emt 0:00:04]} Rxb6 {[%emt 0:00:01]} 16. Qc2 {[%emt 0:00:03]} Rb4 {[%emt 0:00:35]} 17. Ra3 {[%emt 0:01:52]} a5 {[%emt 0:02:35]} 18. Bb5 {[%emt 0:06:47]} Nh5 {[%emt 0:01:58]} 19. Bc6 {[%emt 0:02:10]} Ba6 {[%emt 0:00:42]} 20. Rd1 {[%emt 0:00:15]} Ne5 {[%emt 0:02:40]} 21. Bxe8 {[%emt 0:00:35]} Bd3 {[%emt 0:00:01]} 22. Nb5 {[%emt 0:00:50]} Bxc2 {[%emt 0:00:02]} 23. Nxc7 {[%emt 0:00:01]} Bxd1 {[%emt 0:00:01]} 24. Bb5 {[%emt 0:00:53]} Nf4 {[%emt 0:00:40]} 25. Nf1 {[%emt 0:00:18]} Rxe4 {[%emt 0:02:30]} 26. Rxa5 {[%emt 0:00:02]} h5 {[%emt 0:00:05]} 27. Be3 {[%emt 0:00:11]} Nc4 {[%emt 0:00:14]} 28. Ra8+ {[%emt 0:00:08]} Kh7 {[%emt 0:00:01]} 29. Ne8 {[%emt 0:00:31]} Nxd5 {[%emt 0:00:13]} 30. Bc6 {[%emt 0:00:07]} Ndxe3 {[%emt 0:00:11]} 31. Nxe3 {[%emt 0:00:08]} Rd4 {[%emt 0:00:07]} 32. Ra7 {[%emt 0:00:03]} Ne5 {[%emt 0:00:05]} 33. Bd5 {[%emt 0:00:10]} Kg8 {[%emt 0:00:21]} 34. Nxd6 {[%emt 0:00:02]} Bb3 {[%emt 0:00:10]} 35. Bxb3 {[%emt 0:00:26]} Rxd6 {[%emt 0:00:01]} 36. Nc4 {[%emt 0:00:12]} Rd3 {[%emt 0:00:17]} 37. Ra8+ {[%emt 0:00:05]} Kh7 {[%emt 0:00:05]} 38. Bc2 {[%emt 0:00:14]} Rd4 {[%emt 0:00:01]} 39. Nxe5 {[%emt 0:00:09]} Bxe5 {[%emt 0:00:01]} 40. Ra7 {[%emt 0:00:07]} Kg7 {[%emt 0:00:04]} 41. g3 {[%emt 0:00:13]} Rd2 {[%emt 0:00:04]} 42. Be4 {[%emt 0:00:18]} Rxf2 {[%emt 0:00:04]} 43. b3 {[%emt 0:00:01]} Bxg3 {[%emt 0:00:10]} 44. Bd5 {[%emt 0:00:00]} Be5 {[%emt 0:00:04]} 45. Bc4 {[%emt 0:00:03]} Bd4 {[%emt 0:00:15]} 46. Rd7 {[%emt 0:00:03]} g5 {[%emt 0:00:09]} 47. Rd5 {[%emt 0:00:04]} Kf6 {[%emt 0:00:26]} 48. Rd7 {[%emt 0:00:15]} Kg6 {[%emt 0:00:05]} 49. b4 {[%emt 0:00:08]} g4 {[%emt 0:00:15]} 50. hxg4 {[%emt 0:00:03]} hxg4 {[%emt 0:00:01]} 51. bxc5 {[%emt 0:00:34]} Bxc5 {[%emt 0:00:10]} 52. Rc7 {[%emt 0:00:05]} Be3 {[%emt 0:00:29]} 53. Re7 {[%emt 0:00:04]} Bg5 {[%emt 0:00:22]} 54. Kg1 {[%emt 0:00:01]} Rf4 {[%emt 0:00:20]} 55. Rc7 {[%emt 0:00:06]} f5 {[%emt 0:00:11]} 56. Kg2 {[%emt 0:00:04]} Rd4 {[%emt 0:00:04]} 57. Rc6+ {[%emt 0:00:02]} Bf6 {[%emt 0:00:03]} 58. Be2 {[%emt 0:00:08]} Kg5 {[%emt 0:00:03]} 59. Rc5 {[%emt 0:00:15]} Rd2 {[%emt 0:00:19]} 60. Kf1 {[%emt 0:00:01]} g3 {[%emt 0:01:20]} 61. Rc8 {[%emt 0:01:07]} g2+ {[%emt 0:00:00]} 62. Kxg2 {[%emt 0:00:03]} Rxe2+ {[%emt 0:00:00]} 63. Kf3 {[%emt 0:00:01]} Re7 {[%emt 0:00:00]} 64. Rg8+ {[%emt 0:00:02]} Bg7 {[%emt 0:00:00]} 65. Ra8 {[%emt 0:00:04]} Rc7 {[%emt 0:00:00]} 66. Rg8 {[%emt 0:00:03]} Kf6 {[%emt 0:00:00]} 67. Ra8 {[%emt 0:00:04]} Rc3+ {[%emt 0:00:00]} 68. Kg2 {[%emt 0:00:01]} Bh6 {[%emt 0:00:00]} 69. Ra6+ {[%emt 0:00:01]} Kg5 {[%emt 0:00:00]} 70. Kf2 {[%emt 0:00:03]} Bf8 {[%emt 0:00:00]} 71. Kg2 {[%emt 0:00:04]} Bc5 {[%emt 0:00:00]} 72. Ra8 {[%emt 0:00:04]} Kg4 {[%emt 0:00:00]} 73. Rg8+ {[%emt 0:00:05]} Kf4 {[%emt 0:00:00]} 74. Ra8 {[%emt 0:00:05]} Rc2+ {[%emt 0:00:00]} 75. Kh3 {[%emt 0:00:01]} Kf3 {[%emt 0:00:06]} 76. Re8 {[%emt 0:00:20]} Bg1 {[%emt 0:00:21]} 77. Kh4 {[%emt 0:00:06]} Be3 {[%emt 0:00:04]} 78. Kh5 {[%emt 0:00:05]} f4 {[%emt 0:00:08]} 0-1

[Event "FIDE Open World Rapid 2024"]
[Site "New York"]
[Date "2024.12.27"]
[Round "9.38"]
[White "Nesterov, Arseniy"]
[Black "Vachier-Lagrave, Maxime"]
[Result "1/2-1/2"]
[ECO "D35"]
[WhiteElo "2599"]
[BlackElo "2731"]
[Annotator "TA"]
[PlyCount "78"]
[EventDate "2024.12.14"]
[EventType "swiss"]
[EventCountry "USA"]
[SourceTitle "playchess.com"]
[Source "ChessBase"]
[SourceQuality "1"]
[TimeControl "900+10"]

{[%evp 12,78,15,10,17,21,23,0,0,0,0,0,0,0,0,0,0,0,0,0,0,0,0,0,0,0,0,0,0,0,0,0,0,0,0,0,0,0,0,0,0,0,0,-12,-16,-14,-8,-23,-16,-12,-8,-41,0,-34,-41,-41,-41,-41,-16,-16,-10,-16,0,0,0,0,0,0,0]} 1. Nf3 {[%emt 0:00:01]} d5 {[%emt 0:00:01]} 2. d4 {[%emt 0:00:10]} Nf6 {[%emt 0:00:02]} 3. c4 {[%emt 0:00:01]} e6 {[%emt 0:00:01]} 4. Nc3 {[%emt 0:00:01]} Nbd7 {[%emt 0:00:02]} 5. Bf4 {[%emt 0:00:13]} Bb4 {[%emt 0:00:14]} 6. cxd5 {[%emt 0:00:11]} exd5 {[%emt 0:00:02]} 7. e3 {[%emt 0:01:17]} Ne4 {[%emt 0:00:01]} 8. Qc2 {[%emt 0:00:02]} g5 {[%emt 0:00:01]} 9. Bg3 {[%emt 0:00:01]} h5 {[%emt 0:00:03]} 10. h4 {[%emt 0:00:00]} Nxg3 {[%emt 0:00:42]} 11. fxg3 {[%emt 0:00:02]} gxh4 {[%emt 0:00:01]} 12. gxh4 {[%emt 0:00:00]} Qe7 {[%emt 0:00:59]} 13. Bd3 {[%emt 0:00:17]} Nf6 {[%emt 0:00:36]} (13... Qxe3+ $6 14. Kd1 Bxc3 15. Qxc3 $14) 14. O-O {[%emt 0:00:50]} Be6 {[%emt 0:00:03]} 15. Bf5 {[%emt 0:02:03] Strongly threatening Bxe6.} O-O-O {[%emt 0:01:04]} 16. Ne5 {[%emt 0:00:45]} Ng4 {[%emt 0:02:16]} 17. Nxf7 {[%emt 0:00:18] Excellent horsemanship.} Qxh4 {[%emt 0:00:01][%csl Gg4][%cal Rh4h2]} 18. Bxe6+ {[%emt 0:00:01]} Kb8 {[%emt 0:00:01][%csl Gg4][%cal Rh4h2]} 19. Bxg4 {[%emt 0:00:01]} (19. Nxd5 $2 Qh2#) 19... hxg4 {[%emt 0:00:01]} 20. Nxh8 {[%emt 0:00:01]} Rxh8 {[%emt 0:00:24]} 21. Rf4 {[%emt 0:03:10]} (21. Nxd5 g3 22. Qxc7+ (22. Nxb4 $2 Qh2#) 22... Ka8 $19) 21... Qh1+ {[%emt 0:02:36]} 22. Kf2 {[%emt 0:00:01]} Qxa1 {[%emt 0:00:02]} 23. Qb1 $1 {[%emt 0:03:06]} Qxb1 {[%emt 0:00:06]} 24. Nxb1 $11 {[%emt 0:00:01][%mdl 4096] Endgame KRB-KRN} g3+ {[%emt 0:00:29]} 25. Kf3 {[%emt 0:00:10][%cal Ob1c3]} ({Much worse is} 25. Kxg3 Bd6 26. Nd2 Bxf4+ 27. exf4 b6 $17) 25... Bd6 {[%emt 0:00:24]} 26. Rf5 {[%emt 0:02:09][%cal Ob1c3]} Rh1 {[%emt 0:00:45]} 27. Nd2 {[%emt 0:00:00] Repels Rf1+} Rd1 {[%emt 0:00:48]} 28. Ke2 $1 {[%emt 0:00:38]} Rg1 {[%emt 0:00:01]} 29. Rxd5 {[%emt 0:02:57]} Rxg2+ {[%emt 0:00:02]} 30. Kd3 {[%emt 0:00:00]} Rf2 {[%emt 0:01:07][%cal Oa7a5]} 31. Rg5 {[%emt 0:00:43]} Kc8 {[%emt 0:00:02]} (31... a5 $5 32. Ne4 Rxb2 33. Rg8+ Ka7 34. Nxd6 cxd6 35. Rxg3 Rxa2 $11) 32. Nc4 {[%emt 0:00:37]} g2 {[%emt 0:00:03]} 33. Nxd6+ $1 {[%emt 0:00:01]} cxd6 $15 {[%emt 0:00:02] KR-KR} 34. Kc3 $1 {[%emt 0:00:16]} d5 {[%emt 0:00:45] White must now prevent ...b5.} 35. a4 $1 {[%emt 0:00:05]} Re2 {[%emt 0:00:40]} 36. b3 {[%emt 0:00:33]} Kd7 {[%emt 0:02:37]} 37. Kd3 $1 {[%emt 0:00:07]} Rb2 {[%emt 0:00:04]} 38. Kc3 {[%emt 0:00:09]} Re2 {[%emt 0:00:11]} 39. Kd3 {[%emt 0:00:01]} Rb2 {[%emt 0:00:01]} 1/2-1/2